bitfinex/quotes_ETHUSD_20260217
["timestamp","ask_amount","ask_price","bid_price","bid_amount"]
[1771353661830,4.97902424,2008.5,2007.3,0.725]
[1771353662030,0.0011,2008.6,2007.4,0.49611815]
[1771353662231,0.0011,2008.6,2007.5,0.725]
[1771353662232,1.24575468,2008.6,2007.5,0.725]
[1771353662520,1.24575468,2008.6,2007.4,0.49611815]
[1771353662720,1.24575468,2008.6,2007.5,0.43902851]
[1771353662922,1.24575468,2008.6,2007.4,0.49611815]
[1771353663145,1.24575468,2008.6,2007.0,2.2517915]
[1771353663447,1.24575468,2008.6,2007.4,1.24539204]
[1771353663632,1.24575468,2008.6,2007.5,0.43910282]
[1771353663938,1.24575468,2008.6,2007.4,1.24539204]
[1771353664139,1.24575468,2008.6,2007.4,1.96839204]
[1771353664847,2.9006,2010.3,2008.7,0.75689926]
[1771353665023,5.47128954,2010.3,2008.5,7.4732354]
[1771353665223,5.73047,2010.2,2008.6,4.87884456]
[1771353665434,1.24367531,2010.2,2008.7,4.49643061]
[1771353665615,1.24367531,2010.2,2008.8,5.37634853]
[1771353665819,8.22079256,2010.2,2008.9,3.54008861]
[1771353666119,8.22079256,2010.2,2008.9,0.731]
[1771353666120,1.24367531,2010.2,2008.9,0.731]
[1771353666431,1.25174101,2010.4,2009.0,4.4334435]
[1771353666634,1.25174101,2010.4,2008.8,0.49611815]
[1771353666831,1.25174101,2010.4,2008.9,4.43231819]
[1771353667039,27.88059329,2010.3,2008.8,0.49611815]
[1771353667247,6.55032629,2010.3,2008.9,1.627]
[1771353667443,6.55032629,2010.3,2008.6,4.9783442]
[1771353667444,6.55032629,2009.9,2008.4,1.74082813]
[1771353667616,6.55032629,2009.5,2008.2,1.24489592]
[1771353667818,7.08132629,2009.5,2008.2,1.24489592]
[1771353668039,0.531,2009.5,2008.2,1.24489592]
[1771353668350,0.531,2009.5,2008.3,0.728]
[1771353669060,0.531,2009.5,2007.8,7.23124407]
[1771353669061,6.55032629,2009.3,2007.9,1.24508192]
[1771353669355,6.55032629,2009.3,2007.8,1.24510011]
[1771353669356,1.24440019,2009.0,2007.8,1.24510011]
[1771353669563,14.97208629,2008.9,2007.5,1.97329174]
[1771353669850,14.97208629,2008.9,2007.3,0.49611815]
[1771353669851,0.53,2008.9,2007.3,0.49611815]
[1771353670073,0.53,2008.9,2007.4,17.54833301]
[1771353670353,0.53,2008.9,2007.5,4.87383592]
[1771353670554,0.53,2008.9,2007.5,1.624]
[1771353670754,0.53,2008.9,2007.6,2.81041699]
[1771353671054,0.53,2008.9,2007.7,0.727]
[1771353671463,1.24452409,2008.8,2007.6,1.623]
[1771353671619,1.24452409,2008.8,2007.6,0.49611815]
[1771353671820,1.77451012,2008.9,2007.7,0.726]
[1771353672838,1.77451012,2008.9,2007.6,2.11811815]
[1771353673037,1.77451012,2008.9,2007.7,2.81280189]
[1771353673240,0.53,2008.9,2007.7,0.49611815]
[1771353673434,0.53,2008.9,2007.8,4.99472999]
[1771353673641,1.7744626,2008.9,2007.9,0.724]
[1771353674278,1.7744626,2008.9,2007.8,1.74126208]
[1771353674476,1.7744626,2008.9,2007.9,2.81539924]
[1771353674652,1.7744626,2008.9,2007.8,1.24514393]
[1771353674963,1.7774626,2008.9,2007.8,1.24514393]
[1771353675164,1.77747449,2008.9,2007.8,1.24514393]
[1771353675364,1.77747449,2008.9,2008.0,1.24501992]
[1771353675365,0.48221213,2008.9,2008.0,1.24501992]
[1771353675566,0.48221213,2008.9,2008.1,2.81720197]
[1771353675768,0.48221213,2008.9,2007.9,0.723]
[1771353676148,0.48221213,2008.9,2007.8,1.24509276]
[1771353676350,0.48221213,2008.9,2007.9,2.82076895]
[1771353676668,0.48221213,2008.9,2007.8,1.96809276]
[1771353676866,0.48221213,2008.9,2007.9,2.82070233]
[1771353677067,0.48221213,2008.9,2007.8,1.96809276]
[1771353677237,0.48221213,2008.9,2007.9,2.82067354]
[1771353677449,0.48221213,2008.9,2007.8,1.96809276]
[1771353677450,0.48221213,2008.9,2008.0,2.82067354]
[1771353677659,0.48221213,2008.9,2007.8,1.96809276]
[1771353677660,1.24452409,2008.8,2007.9,1.24504114]
[1771353677988,1.72668422,2008.9,2008.0,3.26608221]
[1771353678291,9.167712,2008.8,2007.7,2.25166037]
[1771353678578,0.528,2008.8,2007.8,3.27258147]
[1771353678883,10.681484,2008.7,2007.4,1.96634718]
[1771353679183,5.65485,2008.6,2007.5,3.27261471]
[1771353679364,5.65485,2008.6,2007.6,2.83030299]
[1771353679566,1.24462868,2008.7,2007.4,1.72443042]
[1771353679881,1.24462868,2008.7,2007.5,0.44256223]
[1771353680066,1.24462868,2008.7,2007.6,0.44256223]
[1771353680272,1.24462868,2008.7,2007.7,2.83237801]
[1771353680477,1.24462868,2008.7,2007.8,2.83237801]
[1771353680791,1.24462868,2008.7,2007.9,2.8320214]
[1771353680996,1.24462868,2008.7,2007.5,2.97066037]
[1771353681284,1.24462868,2008.7,2007.6,3.2747562]
[1771353681492,0.48221213,2008.6,2007.7,3.2747562]
[1771353681659,0.48221213,2008.6,2007.8,4.07733337]
[1771353681989,1.72690794,2008.6,2007.6,4.98096964]
[1771353682298,1.72690794,2008.6,2007.7,3.27494275]
[1771353682462,1.72690794,2008.6,2007.8,2.83237472]
[1771353682787,1.72690794,2008.6,2007.6,4.98096964]
[1771353682990,0.48221213,2008.6,2007.7,3.27530168]
[1771353683163,1.72687006,2008.6,2007.8,2.8327136]
[1771353683362,1.72687006,2008.6,2007.9,2.8327136]
[1771353683601,1.72687006,2008.6,2007.6,7.23263001]
[1771353683792,1.72687006,2008.6,2007.8,1.24514393]
[1771353683985,1.72687006,2008.6,2007.9,2.83250268]
[1771353684288,1.72687006,2008.6,2007.8,1.24514393]
[1771353684490,1.72687006,2008.6,2007.9,2.83265063]
[1771353684792,2.18725453,2008.6,2007.3,3.49707878]
[1771353684997,0.46038447,2008.5,2007.7,0.001]
[1771353685158,25.18184053,2008.4,2007.7,0.001]
[1771353685488,25.18184053,2008.4,2007.0,8.83737743]
[1771353685489,0.98838447,2008.3,2007.5,0.001]
[1771353685678,1.72687006,2008.6,2007.5,0.001]
[1771353685679,0.48221213,2008.6,2007.7,0.47904279]
[1771353685877,0.0011,2009.3,2007.6,13.71474917]
[1771353685878,0.0011,2009.3,2008.0,0.47904279]
[1771353686078,0.0011,2009.3,2008.1,6.00621365]
[1771353686079,1.24532082,2009.3,2008.1,6.00621365]
[1771353686282,1.24532082,2009.3,2008.2,2.83314217]
[1771353686487,1.88938447,2009.2,2007.9,2.25166037]
[1771353686668,1.88938447,2009.2,2008.0,2.83066312]
[1771353686867,12.73026,2009.1,2008.1,2.83066312]
[1771353687069,12.73026,2009.1,2007.7,3.44770316]
[1771353687291,10.02119,2009.1,2007.8,2.8309894]
[1771353687504,10.02119,2009.1,2007.7,3.44770316]
[1771353687505,10.02119,2009.1,2007.9,2.8309894]
[1771353687675,10.02119,2009.1,2008.0,2.8309894]
[1771353687876,6.55583653,2008.5,2007.6,2.26506783]
[1771353688107,1.89138447,2008.4,2007.0,1.24658117]
[1771353688306,3.243467,2008.3,2007.0,1.24658117]
[1771353688603,1.431,2008.4,2007.0,1.72562396]
[1771353689408,1.89138447,2008.4,2007.0,1.72562396]
[1771353689608,1.89138447,2008.4,2007.0,2.44162396]
[1771353689810,1.431,2008.4,2007.1,0.47904279]
[1771353689982,1.24483393,2008.3,2007.2,1.24551614]
[1771353690502,2.67581213,2008.4,2007.2,1.72455893]
[1771353691086,1.431,2008.4,2007.2,1.72455893]
[1771353691282,1.431,2008.4,2007.4,0.47904279]
[1771353691686,1.431,2008.4,2007.5,0.716]
[1771353692115,1.431,2008.4,2007.6,1.24526798]
[1771353693217,2.67578066,2008.4,2007.4,0.713]
[1771353693435,2.67578066,2008.4,2007.5,0.47904279]
[1771353693436,1.431,2008.4,2007.5,0.47904279]
[1771353693622,2.6757739,2008.4,2007.5,0.47904279]
[1771353693787,2.6757739,2008.4,2007.3,1.24545409]
[1771353695197,2.6757739,2008.4,2007.3,1.95845409]
[1771353695516,2.6757739,2008.4,2007.3,1.24545409]
[1771353695817,2.67577985,2008.4,2007.4,0.714]
[1771353696324,2.67577985,2008.4,2007.5,1.24533001]
[1771353696997,2.67577985,2008.4,2007.2,4.98196221]
[1771353697201,3.13616432,2008.4,2007.2,1.24551614]
[1771353697892,2.67577985,2008.4,2007.2,1.24551614]
[1771353698112,2.67577985,2008.4,2007.3,0.44488797]
[1771353698320,2.67577985,2008.4,2007.5,0.001]
[1771353699794,3.13616432,2008.4,2007.5,0.001]
[1771353700010,0.46038447,2008.2,2007.5,0.001]
[1771353700306,1.24495792,2008.1,2007.5,0.001]
[1771353700512,0.533,2008.0,2007.5,0.001]
[1771353701339,0.533,2008.0,2007.0,4.98331278]
[1771353701340,0.99338447,2008.0,2007.0,0.001]
[1771353701743,3.469311,2007.8,2007.0,0.001]
[1771353702112,3.047035,2007.8,2007.0,0.001]
[1771353702312,1.24520595,2007.7,2007.0,0.001]
[1771353702541,0.535,2007.6,2007.0,0.001]
[1771353702742,1.24464801,2008.6,2007.2,0.47904279]
[1771353703038,1.24464801,2008.6,2007.4,0.47904279]
[1771353703241,1.24463554,2008.7,2007.5,3.7698772]
[1771353703415,1.24463554,2008.7,2007.6,2.84634794]
[1771353703611,1.24463554,2008.7,2007.5,0.47904279]
[1771353703816,1.24463554,2008.7,2007.6,2.84406438]
[1771353704015,1.24463554,2008.7,2007.5,0.47904279]
[1771353704234,1.24463554,2008.7,2007.6,2.84386667]
[1771353704440,1.24463554,2008.7,2007.6,0.44433761]
[1771353704739,4.9793214,2008.8,2007.6,1.24526798]
[1771353706540,5.45573844,2008.8,2007.6,1.24526798]
[1771353706741,5.45573844,2008.8,2007.3,1.24545409]
[1771353706742,0.47641704,2008.6,2007.3,1.24545409]
[1771353706923,0.539,2008.5,2007.4,2.84576873]
[1771353707125,0.539,2008.5,2007.3,1.24545409]
[1771353707325,1.01541704,2008.5,2007.3,1.24545409]
[1771353708715,1.24477195,2008.4,2007.3,1.24545409]
[1771353709021,1.72118899,2008.4,2007.3,1.24545409]
[1771353710119,1.72118899,2008.4,2007.1,4.98222378]
[1771353710319,0.47641704,2008.3,2007.2,0.4450927]
[1771353710528,0.47641704,2008.3,2007.1,5.68622378]
[1771353710729,1.24489592,2008.2,2007.2,1.69057071]
[1771353710942,0.54,2008.1,2007.2,1.24546179]
[1771353712714,1.24501992,2008.0,2007.5,0.001]
[1771353713148,0.0011,2008.2,2007.5,0.001]
[1771353714839,0.0011,2008.2,2007.5,1.24633001]
[1771353716953,0.0011,2008.2,2007.5,0.001]
[1771353719400,0.0011,2008.2,2007.3,0.001]
[1771353719401,0.47712623,2008.0,2007.3,0.001]
[1771353719538,6.44208036,2007.8,2007.0,0.001]
[1771353719736,0.536,2007.9,2007.0,1.24663448]
[1771353720163,0.536,2007.9,2007.0,1.24663351]
[1771353721061,1.24514393,2007.8,2007.0,0.001]
[1771353722350,4.746267,2007.7,2007.0,0.001]
[1771353723437,14.04479136,2007.5,2006.8,0.001]
[1771353723639,0.538,2007.4,2006.8,0.001]
[1771353725340,6.44208036,2007.2,2006.0,1.74434142]
[1771353725571,1.24557819,2007.1,2006.0,1.74434142]
[1771353725779,0.543,2007.0,2006.0,0.49812246]
[1771353726281,0.543,2007.0,2005.6,4.9860095]
[1771353726282,6.44208036,2006.9,2005.7,1.74452583]
[1771353726450,10.241856,2006.8,2005.7,1.74452583]
[1771353726656,3.26389,2006.8,2005.7,1.74452583]
[1771353726963,15.494486,2006.5,2005.3,1.74481871]
[1771353727143,6.91920659,2006.6,2005.2,1.24771007]
[1771353727144,6.44208036,2006.3,2005.2,1.24771007]
[1771353727344,12.388083,2006.2,2005.2,0.001]
[1771353727564,8.840869,2006.0,2005.2,0.001]
[1771353727756,0.545,2005.9,2005.2,0.001]
[1771353728718,0.47712623,2005.8,2005.2,0.001]
[1771353728841,6.44208036,2005.3,2004.2,1.74550296]
[1771353729044,0.546,2005.2,2004.2,0.49812246]
[1771353729252,6.44208036,2005.0,2004.0,1.2474643]
[1771353729480,1.24700718,2004.8,2003.9,0.49812246]
[1771353729680,6.98808036,2004.7,2003.6,1.24770658]
[1771353729887,0.47712623,2005.9,2004.9,0.5]
[1771353730048,1.72355114,2005.8,2004.9,0.5]
[1771353730252,0.47712623,2005.7,2004.9,0.5]
[1771353730450,0.547,2005.6,2004.9,0.5]
[1771353730676,0.547,2005.6,2004.4,7.12708036]
[1771353730677,0.547,2005.6,2005.1,0.5]
[1771353731176,1.02412623,2005.6,2004.9,0.44]
[1771353731482,1.02412623,2005.6,2004.1,0.49812246]
[1771353731483,0.547,2005.6,2005.0,0.44]
[1771353731781,1.79351096,2005.6,2004.8,1.24696219]
[1771353731982,1.79351096,2005.6,2005.0,0.44]
[1771353732651,1.79351096,2005.6,2004.8,1.24696219]
[1771353732652,2.27063719,2005.6,2004.8,0.44]
[1771353733478,1.79351096,2005.6,2004.8,0.44]
[1771353733678,1.79351096,2005.6,2004.9,0.44]
[1771353733981,2.27063719,2005.6,2004.8,0.44]
[1771353734183,6.57948984,2006.0,2004.8,0.44]
[1771353734184,0.47712623,2006.5,2005.3,0.44]
[1771353734387,26.83779264,2013.2,2004.8,9.39312246]
[1771353734388,6.965562,2006.6,2005.7,0.44]
[1771353734551,0.549,2006.5,2005.7,0.44]
[1771353737790,1.24601275,2006.4,2005.7,0.38]
[1771353738354,1.7110087,2006.4,2005.7,0.38]
[1771353738556,1.7110087,2006.4,2005.3,1.24665087]
[1771353738557,1.7110087,2006.4,2005.5,0.38]
[1771353739075,13.825147,2006.3,2005.5,0.38]
[1771353739287,13.825147,2006.3,2005.4,0.38]
[1771353739288,12.40535695,2006.3,2005.4,0.38]
[1771353739459,0.46499595,2006.2,2005.4,0.38]
[1771353739654,0.46499595,2006.2,2005.0,1.24685353]
[1771353739655,0.46499595,2006.0,2005.3,0.38]
[1771353739886,0.46499595,2006.0,2005.9,0.001]
[1771353740100,0.46499595,2006.0,2005.0,1.24687802]
[1771353740458,0.46499595,2006.0,2005.7,0.001]
[1771353740657,0.46499595,2006.0,2004.6,4.9882968]
[1771353740873,0.46499595,2006.0,2005.4,0.001]
[1771353741787,1.24632334,2005.9,2005.4,0.001]
[1771353742293,1.71131929,2005.9,2005.4,0.001]
[1771353742695,0.46499595,2005.4,2004.0,4.98983437]
[1771353743002,0.553,2005.3,2004.0,4.98983437]
[1771353743162,1.01799595,2005.3,2004.0,4.98983437]
[1771353743361,1.01799595,2005.3,2004.0,5.48624622]
[1771353743698,1.01799595,2005.3,2004.2,1.2473805]
[1771353743699,1.79974074,2005.3,2004.2,1.2473805]
[1771353744089,0.553,2005.3,2004.2,1.74379235]
[1771353744288,1.79969906,2005.3,2004.2,1.74379235]
[1771353744492,1.79969906,2005.3,2004.2,2.41179235]
[1771353744810,1.79969906,2005.3,2004.2,1.2473805]
[1771353745381,4.98678501,2005.5,2004.3,0.49641185]
[1771353745382,1.24659982,2005.5,2004.3,0.49641185]
[1771353745800,4.98579217,2005.7,2004.4,1.24725603]
[1771353747579,5.45078812,2005.7,2004.4,1.24725603]
[1771353751613,5.45078812,2005.7,2004.5,0.49641185]
[1771353753113,1.24644762,2005.7,2004.6,1.24813159]
[1771353753418,0.5551,2005.8,2004.7,0.49641185]
[1771353753797,1.801491,2005.8,2004.7,0.49641185]
[1771353754818,1.801491,2005.8,2004.6,1.24813159]
[1771353754819,6.99565955,2005.5,2004.6,1.24813159]
[1771353755035,0.558,2005.4,2004.6,1.24813159]
[1771353755190,0.558,2005.4,2004.6,0.001]
[1771353755390,1.80463457,2005.4,2004.6,0.001]
[1771353756120,0.558,2005.4,2004.6,0.001]
[1771353756321,0.46499595,2005.3,2004.6,0.001]
[1771353756620,8.80033215,2005.4,2004.6,0.001]
[1771353756802,9.2653281,2005.4,2004.6,0.001]
[1771353757404,2.26966855,2005.4,2004.6,0.001]
[1771353760234,0.0011,2005.8,2004.7,0.49641185]
[1771353760397,0.0011,2005.8,2004.9,0.49641185]
[1771353761121,0.0011,2005.8,2005.0,1.91188279]
[1771353761818,0.0011,2005.8,2005.0,1.24688279]
[1771353762219,0.0011,2005.8,2004.9,1.24689404]
[1771353762912,0.46609595,2005.8,2004.9,1.24689404]
[1771353763235,1.24644762,2005.7,2004.8,4.98789466]
[1771353763422,2.27044357,2005.7,2004.8,4.98789466]
[1771353764100,0.559,2005.7,2004.8,4.98789466]
[1771353764311,0.559,2005.7,2004.8,5.48430651]
[1771353765418,1.80545058,2005.7,2004.8,5.48430651]
[1771353765808,1.80545058,2005.7,2004.8,6.14830651]
[1771353766107,1.80545058,2005.7,2004.8,0.664]
[1771353766854,0.49014372,2005.6,2004.7,1.24706938]
[1771353767151,0.49014372,2005.6,2004.4,4.98997957]
[1771353767152,1.2468206,2005.1,2004.4,0.001]
[1771353767456,0.557,2005.2,2004.4,0.001]
[1771353767825,0.557,2005.2,2004.4,0.45248654]
[1771353768023,0.557,2005.2,2004.8,0.001]
[1771353768225,2.1456058,2005.5,2004.8,0.001]
[1771353768421,2.7037058,2005.5,2004.8,0.001]
[1771353768746,2.70367797,2005.5,2004.8,0.001]
[1771353769239,1.4571,2005.5,2004.8,0.001]
[1771353771533,1.4571,2005.5,2004.8,1.24800718]
[1771353771846,0.0011,2005.5,2004.8,1.24800718]
[1771353772356,0.0011,2005.5,2004.9,0.658]
[1771353772642,1.24768404,2005.5,2004.8,1.90700718]
[1771353773043,0.0011,2005.5,2004.8,1.90700718]
[1771353773837,0.0011,2005.5,2004.8,1.90800718]
[1771353776221,0.0011,2005.5,2004.8,1.24800718]
[1771353776427,0.0011,2005.5,2004.9,0.663]
[1771353777354,0.0011,2005.5,2004.9,0.664]
[1771353777718,0.0011,2005.5,2005.0,1.24688279]
[1771353778044,0.0011,2005.5,2004.9,1.91090158]
[1771353778217,0.0011,2005.5,2004.9,1.24690158]
[1771353781955,0.0011,2005.5,2004.9,1.71584611]
[1771353782759,0.0011,2005.3,2004.9,1.71584611]
[1771353782962,0.0011,2005.5,2005.0,0.671]
[1771353783137,0.0011,2005.8,2005.1,0.46894453]
[1771353783459,0.0011,2005.8,2005.2,0.672]
[1771353784635,0.0011,2005.8,2005.3,1.24669625]
[1771353785662,0.0011,2005.8,2005.2,1.92075478]
[1771353785979,0.0011,2005.8,2005.2,1.24675478]
[1771353786265,0.49306926,2005.8,2005.1,1.92276877]
[1771353786630,1.73841688,2005.7,2005.1,1.24676877]
[1771353787598,1.73841688,2005.7,2005.0,1.92285995]
[1771353787760,1.73841688,2005.7,2005.0,1.24685995]
[1771353789046,0.49196926,2005.6,2004.9,1.2469067]
[1771353789248,0.49196926,2005.6,2004.8,0.677]
[1771353789451,0.49196926,2005.6,2004.8,0.001]
[1771353790057,0.49196926,2005.6,2004.4,0.677]
[1771353790058,0.49196926,2005.6,2004.4,0.001]
[1771353790282,0.49196926,2004.8,2004.1,0.001]
[1771353790482,0.49196926,2004.7,2004.1,0.001]
[1771353790986,0.49196926,2004.5,2004.1,0.001]
[1771353791684,1.24713159,2004.6,2004.1,0.001]
[1771353792491,1.73910085,2004.6,2004.1,0.001]
[1771353793862,0.49196926,2004.5,2004.1,0.001]
[1771353794575,1.73209461,2004.8,2004.1,0.001]
[1771353794784,2.28209461,2004.8,2004.1,0.001]
[1771353794979,2.28209461,2004.8,2004.3,0.001]
[1771353795278,0.48503672,2004.7,2004.3,0.001]
[1771353795447,0.48503672,2004.7,2004.1,0.001]
[1771353797385,1.24713159,2004.6,2004.1,0.001]
[1771353797606,1.73216831,2004.6,2004.1,0.001]
[1771353797958,0.48503672,2004.5,2004.1,0.001]
[1771353799288,1.24725603,2004.4,2004.1,0.001]
[1771353800294,1.24725603,2004.4,2003.8,0.001]
[1771353800295,2.28929275,2004.4,2003.8,0.001]
[1771353800494,0.48503672,2004.3,2003.8,0.001]
[1771353800791,1.80425603,2004.4,2003.8,0.001]
[1771353801299,0.557,2004.4,2003.8,0.001]
[1771353801791,1.80427181,2004.4,2003.8,0.001]
[1771353801993,0.557,2004.4,2003.8,0.001]
[1771353803397,0.48503672,2005.3,2003.8,0.45595085]
[1771353803694,1.04303672,2005.2,2004.0,6.9198792]
[1771353803891,1.04303672,2005.2,2004.0,1.10995085]
[1771353804117,1.04303672,2005.2,2004.1,0.45495085]
[1771353804266,0.558,2005.2,2004.1,0.45495085]
[1771353804467,0.558,2005.2,2004.3,0.45495085]
[1771353804686,0.899,2005.3,2004.3,0.45495085]
[1771353804903,1.38403672,2005.3,2004.2,6.46492835]
[1771353805278,2.63073868,2005.3,2004.3,1.24731826]
[1771353805672,0.899,2005.3,2004.3,1.70226911]
[1771353807192,2.14570089,2005.3,2004.3,1.70226911]
[1771353807681,0.0011,2005.0,2004.3,1.24731826]
[1771353808690,0.0011,2005.0,2004.3,1.70226911]
[1771353809080,0.0011,2005.0,2004.4,0.45495085]
[1771353809509,0.0011,2005.0,2004.5,1.24719381]
[1771353809888,0.0011,2005.0,2004.5,1.70214466]
[1771353810729,0.0011,2005.0,2004.5,1.24719381]
[1771353811493,0.0011,2005.0,2004.3,5.64577525]
[1771353812012,0.0011,2005.0,2004.4,0.45495085]
[1771353812174,0.0011,2005.0,2004.3,4.98877525]
[1771353812375,0.0011,2005.0,2004.4,0.658]
[1771353812804,0.0011,2005.0,2004.4,1.11295085]
[1771353813411,0.0011,2005.0,2004.4,0.45495085]
[1771353813590,0.0011,2005.0,2004.6,1.24713159]
[1771353820093,0.0011,2005.0,2004.5,4.98852638]
[1771353820307,0.48613672,2005.0,2004.5,0.677]
[1771353820719,0.0011,2005.0,2004.5,0.677]
[1771353821422,0.0011,2004.8,2004.5,0.677]
[1771353821801,0.0011,2004.8,2004.3,1.24731826]
[1771353822001,0.0011,2004.8,2004.4,0.678]
[1771353822200,0.0011,2004.8,2004.3,5.66712356]
[1771353822638,0.0011,2004.8,2004.3,4.98912356]
[1771353822822,0.0011,2004.8,2004.3,5.66712356]
[1771353824217,0.0011,2004.8,2004.3,4.98912356]
[1771353824413,0.0011,2004.8,2004.4,0.681]
[1771353825597,0.4872682,2004.8,2004.3,4.98912356]
[1771353825829,0.4872682,2004.8,2004.2,1.24837454]
[1771353826203,0.4861682,2004.7,2004.2,1.24837454]
[1771353826521,0.4861682,2004.7,2004.2,0.001]
[1771353828740,1.73324635,2004.7,2004.2,0.001]
[1771353829026,0.4861682,2004.7,2004.2,0.001]
[1771353829330,1.73323903,2004.7,2004.2,0.001]
[1771353829624,1.7332448,2004.7,2004.2,0.001]
[1771353829835,0.4861682,2004.7,2004.2,0.001]
[1771353830040,1.73324255,2004.7,2004.2,0.001]
[1771353830334,0.4861682,2004.7,2004.2,0.001]
[1771353830520,1.73324706,2004.7,2004.2,0.001]
[1771353830842,0.4861682,2004.6,2004.2,0.001]
[1771353833306,0.0011,2004.8,2004.2,0.001]
[1771353833833,0.49599287,2004.7,2004.2,0.001]
[1771353834728,0.0011,2004.5,2004.2,0.001]
[1771353836836,0.49709287,2004.5,2004.2,0.001]
[1771353838222,1.74429951,2004.5,2004.2,0.001]
[1771353838634,0.49709287,2004.5,2004.2,0.001]
[1771353838837,0.0011,2004.5,2004.0,0.001]
[1771353839733,0.0011,2004.5,2004.1,0.681]
[1771353840308,0.0011,2004.5,2004.2,1.2473805]
[1771353841234,0.0011,2004.7,2004.2,1.2473805]
[1771353841605,0.0011,2004.7,2004.3,0.684]
[1771353842337,0.0011,2004.7,2004.0,4.990522]
[1771353842540,0.0011,2004.7,2004.1,1.584]
[1771353843237,0.0011,2004.7,2004.1,2.03454135]
[1771353843411,0.0011,2004.7,2004.1,1.584]
[1771353843713,0.0011,2004.7,2004.0,5.44106335]
[1771353843919,0.0011,2004.7,2004.2,0.687]
[1771353844227,0.49709287,2004.7,2004.3,0.689]
[1771353844411,1.74421394,2004.7,2004.3,0.689]
[1771353844610,1.74416271,2004.7,2004.3,0.689]
[1771353844911,1.74416271,2004.7,2004.1,1.24743254]
[1771353845341,1.74416271,2004.7,2004.2,0.689]
[1771353845842,1.74416271,2004.7,2004.0,0.001]
[1771353846143,0.49599287,2004.3,2003.3,1.24790892]
[1771353846307,0.49599287,2004.1,2003.2,4.99199278]
[1771353846717,0.49599287,2004.1,2003.3,1.588]
[1771353846918,0.49599287,2004.4,2003.4,0.45054135]
[1771353847123,0.49599287,2004.4,2003.5,0.001]
[1771353847743,0.49599287,2004.4,2004.2,0.001]
[1771353848331,1.24731826,2004.3,2004.2,0.001]
[1771353848533,1.74331113,2004.3,2004.2,0.001]
[1771353848734,1.74331113,2004.3,2004.0,0.001]
[1771353849131,0.49599287,2004.2,2004.0,0.001]
[1771353850176,0.0011,2004.5,2004.0,0.002]
[1771353850177,0.49709287,2004.5,2004.0,0.002]
[1771353850353,0.0011,2004.5,2004.1,0.001]
[1771353851849,0.0011,2004.5,2004.2,0.686]
[1771353852252,0.0011,2004.5,2004.3,0.001]
[1771353853121,0.0011,2004.5,2004.3,0.686]
[1771353854341,0.0011,2004.7,2004.3,0.685]
[1771353854548,0.0011,2004.7,2004.4,1.24725603]
[1771353856581,0.0011,2004.7,2004.5,0.693]
[1771353856789,0.0011,2004.8,2004.5,0.693]
[1771353857086,0.0011,2005.0,2004.5,0.693]
[1771353858349,0.0011,2005.0,2004.6,0.46825946]
[1771353858764,0.0011,2005.0,2004.7,1.24706938]
[1771353859576,0.0011,2005.2,2004.7,1.24706938]
[1771353861049,0.0011,2005.2,2004.7,1.71532884]
[1771353863888,0.0011,2005.2,2004.7,1.24706938]
[1771353864298,0.0011,2005.2,2004.8,1.607]
[1771353864467,0.0011,2005.3,2004.8,1.607]
[1771353865074,0.0011,2005.3,2004.9,1.24694498]
[1771353865466,0.0011,2005.3,2005.0,0.71]
[1771353865778,0.49763223,2005.3,2005.1,0.711]
[1771353865994,0.49763223,2005.3,2005.2,0.711]
[1771353866368,0.0011,2005.3,2005.2,0.711]
[1771353866804,0.49763223,2005.3,2005.2,0.711]
[1771353868303,0.0011,2005.3,2005.2,0.711]
[1771353868503,0.0011,2005.3,2005.2,0.71]
[1771353869098,1.24780428,2005.3,2004.6,1.24713159]
[1771353869285,1.24780428,2005.3,2004.8,1.24700718]
[1771353869492,0.49653223,2005.2,2004.9,0.71]
[1771353869671,0.49653223,2005.2,2004.5,0.711]
[1771353870398,1.74433651,2005.3,2004.5,0.711]
[1771353870705,0.49653223,2005.2,2004.5,0.711]
[1771353871398,1.74330323,2005.2,2004.6,0.709]
[1771353871600,0.49653223,2005.2,2004.6,0.709]
[1771353872774,0.49653223,2005.2,2004.8,0.001]
[1771353873077,0.0011,2005.0,2004.8,0.001]
[1771353875474,0.0011,2005.0,2004.8,0.71]
[1771353875687,0.0011,2005.0,2004.8,1.95698151]
[1771353876074,0.0011,2005.0,2004.8,1.95700382]
[1771353877304,0.0011,2005.0,2004.8,0.71]
[1771353882993,0.0011,2005.0,2004.9,0.716]
[1771353887013,0.0011,2005.0,2004.8,0.001]
[1771353887191,5.60819185,2004.7,2004.6,0.719]
[1771353887381,5.60819185,2004.7,2004.4,1.96623668]
[1771353887690,0.0011,2004.8,2004.4,1.96623668]
[1771353888092,0.0011,2004.8,2004.4,2.44481678]
[1771353888503,0.0011,2004.8,2004.4,1.96623668]
[1771353889207,0.0011,2004.8,2004.5,0.721]
[1771353889876,0.46561399,2004.8,2004.3,0.001]
[1771353890080,0.46451399,2004.7,2004.0,1.97150465]
[1771353891590,1.71164558,2004.6,2004.0,1.24850465]
[1771353891896,1.71164558,2004.6,2004.1,0.722]
[1771353893114,0.01387581,2004.5,2004.0,0.001]
[1771353893315,0.48343816,2004.5,2003.9,0.001]
[1771353893487,0.46956235,2004.4,2003.8,0.723]
[1771353893687,0.46956235,2004.2,2003.8,0.722]
[1771353893883,0.46956235,2004.1,2003.4,0.001]
[1771353894116,1.24731826,2004.3,2003.5,0.48601103]
[1771353894117,2.26988061,2004.3,2003.5,0.48601103]
[1771353894642,2.26988061,2004.3,2003.6,0.722]
[1771353895038,1.71688061,2004.3,2003.6,0.722]
[1771353895350,0.46956235,2004.2,2003.6,0.722]
[1771353895556,0.46956235,2004.0,2003.6,0.721]
[1771353896238,1.24756724,2003.9,2003.5,0.721]
[1771353896622,1.71712959,2003.9,2003.4,0.001]
[1771353897039,1.71712959,2003.9,2003.4,0.721]
[1771353897318,1.71712959,2003.9,2003.4,0.001]
[1771353897536,1.71712959,2003.9,2003.4,1.24887006]
[1771353898543,1.71712959,2003.9,2003.4,0.001]